bitfinex/quotes_ETHUSD_20250705
["timestamp","ask_amount","ask_price","bid_price","bid_amount"]
[1751716278579,22.24105534,2526.8,2526.7,0.0004955]
[1751716280072,30.19905534,2526.8,2526.7,0.0004955]
[1751716281604,29.64905534,2526.8,2526.7,0.0004955]
[1751716281812,14.70533142,2526.7,2526.6,0.002]
[1751716281996,18.82407121,2526.7,2526.6,0.002]
[1751716285104,18.27407121,2526.7,2526.6,0.002]
[1751716287003,13.95804472,2526.5,2526.4,0.0207846]
[1751716287190,3.95867146,2526.1,2526.0,0.02]
[1751716287407,19.80364007,2526.1,2526.0,0.02]
[1751716287707,21.73164007,2526.1,2526.0,0.02]
[1751716289090,22.28164007,2526.1,2526.0,0.02]
[1751716289294,23.6768482,2526.1,2526.0,0.02]
[1751716289805,25.7398326,2526.1,2526.0,0.02]
[1751716291297,25.1898326,2526.1,2526.0,0.02]
[1751716291493,25.7398326,2526.1,2526.0,0.02]
[1751716291690,55.7398326,2526.1,2526.0,1e-08]
[1751716292131,56.0266326,2526.1,2526.0,1e-08]
[1751716293339,56.0266326,2526.1,2525.9,1e-08]
[1751716293340,44.50882818,2526.0,2525.9,1e-08]
[1751716293541,54.66856797,2526.0,2525.9,1e-08]
[1751716294211,16.69956797,2526.0,2525.9,1e-08]
[1751716294615,18.62756797,2526.0,2525.9,1e-08]
[1751716295044,16.69956797,2526.0,2525.9,1e-08]
[1751716295247,18.62856797,2526.0,2525.9,1e-08]
[1751716296093,18.62779654,2526.0,2525.9,1e-08]
[1751716297220,18.83437024,2526.0,2525.9,1e-08]
[1751716299057,18.83433315,2526.0,2525.9,1e-08]
[1751716303035,18.28433315,2526.0,2525.9,1e-08]
[1751716303676,16.35533315,2526.0,2525.9,1e-08]
[1751716303974,14.53530769,2526.0,2525.9,0.80230001]
[1751716305036,14.5354882,2526.0,2525.9,0.80230001]
[1751716306232,10.57666002,2526.0,2525.9,0.80230001]
[1751716307336,14.5354882,2526.0,2525.9,0.80230001]
[1751716308144,14.53577611,2526.0,2525.9,0.80230001]
[1751716309271,10.57694793,2526.0,2525.9,0.80230001]
[1751716309554,10.37037423,2526.0,2525.9,0.80230001]
[1751716310553,4.32920241,2526.0,2525.9,0.80230001]
[1751716311064,14.32920241,2526.0,2525.9,0.80230001]
[1751716317671,10.37037423,2526.0,2525.9,0.80230001]
[1751716317868,0.37037423,2526.0,2525.9,0.80230001]
[1751716318069,0.56797423,2526.0,2525.9,0.80230001]
[1751716319671,0.1976,2526.0,2525.9,0.80230001]
[1751716319976,0.56851641,2526.0,2525.9,0.80230001]
[1751716326881,10.56851641,2526.0,2525.9,0.80230001]
[1751716327781,0.56851641,2526.0,2525.9,0.80230001]
[1751716331584,10.56851641,2526.0,2525.9,0.80230001]
[1751716333495,10.56851427,2526.0,2525.9,0.80230001]
[1751716334784,4.52734245,2526.0,2525.9,0.80230001]
[1751716335877,10.56851427,2526.0,2525.9,0.80230001]
[1751716336487,10.56858925,2526.0,2525.9,0.80230001]
[1751716337292,16.37600401,2526.0,2525.9,1e-08]
[1751716338354,14.52741743,2526.0,2525.9,1e-08]
[1751716348465,14.73396771,2526.0,2525.9,1e-08]
[1751716353677,14.73433887,2526.0,2525.9,1e-08]
[1751716355183,10.77551069,2526.0,2525.9,1e-08]
[1751716355975,14.73433887,2526.0,2525.9,1e-08]
[1751716357821,10.77551069,2526.0,2525.9,1e-08]
[1751716360913,14.73433887,2526.0,2525.9,1e-08]
[1751716362314,10.77551069,2526.0,2525.9,1e-08]
[1751716366525,14.73433887,2526.0,2525.9,1e-08]
[1751716368003,10.77551069,2526.0,2525.9,1e-08]
[1751716370806,14.73433887,2526.0,2525.9,1e-08]
[1751716372008,10.77551069,2526.0,2525.9,1e-08]
[1751716375131,14.73433887,2526.0,2525.9,1e-08]
[1751716375603,10.77551069,2526.0,2525.9,1e-08]
[1751716379436,10.77551069,2526.0,2525.9,0.00200001]
[1751716379634,10.77651069,2526.0,2525.9,0.00200001]
[1751716380098,14.73533887,2526.0,2525.9,0.00200001]
[1751716380909,14.36397846,2526.0,2525.9,0.00200001]
[1751716381109,14.73545433,2526.0,2525.9,0.00200001]
[1751716383729,10.77662615,2526.0,2525.9,0.00200001]
[1751716384140,10.57007587,2526.0,2525.9,0.00200001]
[1751716385540,10.57007587,2526.0,2525.9,1e-08]
[1751716385738,10.56907587,2526.0,2525.9,1e-08]
[1751716386312,10.56917771,2526.0,2525.9,1e-08]
[1751716386811,10.56917759,2526.0,2525.9,1e-08]
[1751716388944,10.37157759,2526.0,2525.9,1e-08]
[1751716390141,10.37157759,2526.0,2525.9,3.95898492]
[1751716391226,10.37157759,2526.0,2525.9,1e-08]
[1751716394128,10.37157759,2526.0,2525.9,3.95898492]
[1751716395956,10.37157759,2526.0,2525.9,11.91198492]
[1751716396456,10.37157759,2526.0,2525.9,7.95300001]
[1751716398559,10.37140064,2526.0,2525.9,7.95300001]
[1751716402157,10.37140064,2526.0,2525.9,7.95500001]
[1751716402461,10.37240064,2526.0,2525.9,7.95500001]
[1751716404267,15.67502888,2526.0,2525.9,0.00200001]
[1751716404468,11.7162007,2526.0,2525.9,7.95500001]
[1751716405447,10.37240064,2526.0,2525.9,7.95500001]
[1751716407363,14.33122882,2526.0,2525.9,7.95500001]
[1751716408337,10.37240064,2526.0,2525.9,7.95500001]
[1751716413869,10.001,2526.0,2525.9,7.95500001]
[1751716414062,10.3724363,2526.0,2525.9,7.95500001]
[1751716414363,14.33126448,2526.0,2525.9,7.95500001]
[1751716414668,16.72788872,2526.0,2525.9,0.00200001]
[1751716414871,17.01468872,2526.0,2525.9,7.95500001]
[1751716419970,17.01468872,2526.0,2525.9,0.00200001]
[1751716421673,16.72788872,2526.0,2525.9,0.00200001]
[1751716422062,16.35645242,2526.0,2525.9,0.00200001]
[1751716422245,16.72787933,2526.0,2525.9,0.00200001]
[1751716425273,16.72783529,2526.0,2525.9,0.00200001]
[1751716427707,12.76900711,2526.0,2525.9,0.00200001]
[1751716427906,10.37238287,2526.0,2525.9,0.00200001]
[1751716436791,10.37242874,2526.0,2525.9,0.00200001]
[1751716439694,10.001,2526.0,2525.9,0.00200001]
[1751716439882,10.37242036,2526.0,2525.9,0.00200001]
[1751716444784,10.37237622,2526.0,2525.9,0.00200001]
[1751716447750,10.37236965,2526.0,2525.9,0.00200001]
[1751716450002,14.61799783,2526.0,2525.9,7.95500001]
[1751716450530,17.04329407,2526.0,2525.9,7.95500001]
[1751716452043,17.04329407,2526.0,2525.9,0.00200001]
[1751716453621,17.04330556,2526.0,2525.9,0.00200001]
[1751716457756,22.5221543,2526.0,2525.9,0.00200001]
[1751716458077,22.7287152,2526.0,2525.9,0.00200001]
[1751716460247,23.2787152,2526.0,2525.9,0.00200001]
[1751716460767,23.2787152,2526.0,2525.4,0.0436007]
[1751716460768,14.24641195,2525.5,2525.4,0.0436007]
[1751716460971,16.54379309,2525.5,2525.4,0.0436007]
[1751716461168,17.09379309,2525.5,2525.4,0.0436007]
[1751716462163,17.09379309,2525.5,2525.4,1e-08]
[1751716462369,17.09379309,2525.5,2524.9,0.0436007]
[1751716462370,14.24719603,2525.0,2524.9,0.0436007]
[1751716462553,20.09742591,2525.0,2524.9,0.0436007]
[1751716462775,20.96489097,2525.0,2524.9,0.0436007]
[1751716463882,15.48604223,2525.0,2524.9,0.0436007]
[1751716467476,16.03604223,2525.0,2524.9,0.0436007]
[1751716468256,16.03604223,2525.0,2524.9,0.0456007]
[1751716471967,46.03604223,2525.0,2524.9,0.0456007]
[1751716472173,46.03604223,2525.0,2524.4,0.0436007]
[1751716472174,3.96118043,2524.5,2524.4,0.0436007]
[1751716472369,24.08986492,2524.5,2524.4,0.0436007]
[1751716473300,24.63986492,2524.5,2524.4,0.0436007]
[1751716474198,24.63670703,2524.5,2524.4,0.0436007]
[1751716477895,54.63670703,2524.5,2524.4,0.0436007]
[1751716478105,57.3802064,2524.5,2524.4,0.0436007]
[1751716478268,57.58678237,2524.5,2524.4,0.0436007]
[1751716480272,27.58678237,2524.5,2524.4,0.0436007]
[1751716480997,35.55478237,2524.5,2524.4,0.0436007]
[1751716481193,25.65778237,2524.5,2524.4,0.0436007]
[1751716481374,35.55578237,2524.5,2524.4,0.0436007]
[1751716481558,35.3492064,2524.5,2524.4,0.0436007]
[1751716481764,25.4512064,2524.5,2524.4,0.0436007]
[1751716482089,27.3812064,2524.5,2524.4,0.0436007]
[1751716485085,27.3812064,2524.5,2524.4,0.0456007]
[1751716486380,27.58782028,2524.5,2524.4,0.0456007]
[1751716487904,27.30102028,2524.5,2524.4,0.0456007]
[1751716488211,19.75951693,2524.5,2524.4,0.0456007]
[1751716488418,6.46601756,2524.5,2524.4,0.0456007]
[1751716488718,16.46601756,2524.5,2524.4,0.0456007]
[1751716489176,12.50483713,2524.5,2524.4,0.0456007]
[1751716489376,16.46601756,2524.5,2524.4,0.0456007]
[1751716501523,20.07698199,2524.5,2524.4,0.0456007]
[1751716502392,20.91378199,2524.5,2524.4,0.0456007]
[1751716503105,20.91378199,2524.5,2524.4,0.00015562]
[1751716509125,20.91378199,2524.5,2523.9,0.0436007]
[1751716509126,13.96196513,2524.0,2523.9,0.0436007]
[1751716509427,14.33018838,2524.0,2523.9,0.0436007]
[1751716517509,15.79116748,2524.0,2523.9,0.0436007]
[1751716517742,16.16147589,2524.0,2523.9,0.0436007]
[1751716520022,16.71147589,2524.0,2523.9,0.0436007]
[1751716520622,16.71147589,2524.0,2523.9,0.0456007]
[1751716528952,16.91821449,2524.0,2523.9,0.0456007]
[1751716529935,17.20501449,2524.0,2523.9,0.0456007]
[1751716532625,47.20501449,2524.0,2523.9,1e-08]
[1751716532858,4.79955014,2523.5,2523.4,0.0436007]
[1751716533160,33.20545579,2523.5,2523.4,0.0436007]
[1751716534254,25.37815244,2523.5,2523.4,0.0436007]
[1751716534456,25.37812254,2523.5,2523.4,0.0436007]
[1751716534631,17.40812254,2523.5,2523.4,0.0436007]
[1751716535831,17.40812254,2523.5,2523.4,1e-08]
[1751716536142,15.76592254,2523.5,2523.4,1e-08]
[1751716536338,25.66692254,2523.5,2523.4,1e-08]
[1751716537534,25.66692254,2523.5,2523.4,0.00200001]
[1751716538329,25.29664403,2523.5,2523.4,0.00200001]
[1751716538534,25.66640369,2523.5,2523.4,0.00200001]
[1751716544262,15.76540369,2523.5,2523.4,0.00200001]
[1751716544633,25.66840369,2523.5,2523.4,0.00200001]
[1751716547861,15.76540369,2523.5,2523.4,0.00200001]
[1751716548061,25.66740369,2523.5,2523.4,0.00200001]
[1751716549174,25.8741993,2523.5,2523.4,0.00200001]
[1751716549938,15.6853993,2523.5,2523.4,0.00200001]
[1751716550149,25.5873993,2523.5,2523.4,0.00200001]
[1751716551263,15.6853993,2523.5,2523.4,0.00200001]
[1751716551562,25.5873993,2523.5,2523.4,0.00200001]
[1751716552651,23.22690265,2523.5,2523.4,0.00200001]
[1751716552972,33.12890265,2523.5,2523.4,0.00200001]
[1751716556262,32.75914299,2523.5,2523.4,0.00200001]
[1751716556464,33.12919269,2523.5,2523.4,0.00200001]
[1751716558074,33.12819269,2523.5,2523.4,0.00200001]
[1751716558676,25.03768934,2523.5,2523.4,0.00200001]
[1751716564891,25.03668934,2523.5,2523.4,0.00200001]
[1751716565272,25.03668934,2523.5,2523.4,1.549e-05]
[1751716566998,17.06668934,2523.5,2523.4,1.549e-05]
[1751716571188,13.96290718,2523.4,2523.3,0.02]
[1751716571513,14.53055688,2523.4,2523.3,0.02]
[1751716578009,20.02212164,2523.4,2523.3,0.02]
[1751716581903,20.02319682,2523.4,2523.3,0.02]
[1751716583927,21.95419682,2523.4,2523.3,0.02]
[1751716584891,12.49972488,2523.4,2523.3,0.02]
[1751716585091,12.49972488,2523.4,2523.3,0.8298]
[1751716586322,10.56872488,2523.4,2523.3,0.8298]
[1751716586746,10.56872488,2523.4,2523.3,5.66850103]
[1751716586930,0.37112488,2523.4,2523.3,5.66850103]
[1751716589133,0.37212488,2523.4,2523.3,5.66850103]
[1751716594622,0.37114314,2523.4,2523.3,5.66850103]
[1751716602150,0.37114314,2523.4,2523.3,13.63250103]
[1751716606567,0.37114314,2523.4,2523.3,12.75686424]
[1751716609660,0.37114314,2523.4,2523.3,0.8298]
[1751716609833,0.37114314,2523.4,2523.3,7.983]
[1751716610040,0.37114314,2523.4,2523.3,11.94606424]
[1751716611655,0.3714239,2523.4,2523.3,11.94606424]
[1751716614331,0.3714239,2523.4,2523.3,7.983]
[1751716615966,0.3714239,2523.4,2523.3,11.94606424]
[1751716617664,0.3714239,2523.4,2523.3,7.983]
[1751716620368,0.3714239,2523.4,2523.3,0.02]
[1751716620791,1.77079385,2523.4,2523.3,0.02]
[1751716621852,5.73370103,2523.4,2523.3,0.02]
[1751716622052,16.02050103,2523.4,2523.3,0.02]
[1751716631474,16.0204247,2523.4,2523.3,0.02]
[1751716631881,17.9494247,2523.4,2523.3,0.02]
[1751716634492,17.94933201,2523.4,2523.3,0.02]
[1751716641597,17.57907713,2523.4,2523.3,0.02]
[1751716648008,15.65007713,2523.4,2523.3,0.02]
[1751716648208,23.06826122,2523.4,2523.3,0.02]
[1751716653625,17.29627713,2523.4,2523.3,0.02]
[1751716655302,15.89690718,2523.4,2523.3,0.02]
[1751716658316,13.96390718,2523.4,2523.3,0.02]
[1751716658515,15.89690718,2523.4,2523.3,0.02]
[1751716660217,11.934,2523.4,2523.3,0.02]
[1751716660420,16.26791267,2523.4,2523.3,0.02]
[1751716666299,16.26785812,2523.4,2523.3,0.02]
[1751716697043,16.26785812,2523.4,2523.3,0.02]
[1751716698043,16.2680474,2523.4,2523.3,0.02]
[1751716703479,14.3350474,2523.4,2523.3,0.02]
[1751716703778,16.2650474,2523.4,2523.3,0.02]
[1751716703985,16.26504129,2523.4,2523.3,0.02]
[1751716710076,16.26505516,2523.4,2523.3,0.02]
[1751716710381,16.26505512,2523.4,2523.3,0.02]
[1751716712923,18.88618975,2523.4,2523.3,0.02]
[1751716715384,19.17298975,2523.4,2523.3,0.02]
[1751716715579,27.13798975,2523.4,2523.3,0.02]
[1751716725118,19.17198975,2523.4,2523.3,0.02]
[1751716725310,16.26405512,2523.4,2523.3,0.02]
[1751716730798,15.89290718,2523.4,2523.3,0.02]
[1751716730999,16.26388084,2523.4,2523.3,0.02]
[1751716733126,16.26385813,2523.4,2523.3,0.02]
[1751716736808,15.89290718,2523.4,2523.3,0.02]
[1751716737010,16.26384127,2523.4,2523.3,0.02]
[1751716737821,19.68145451,2523.4,2523.3,0.02]
[1751716741824,19.68149487,2523.4,2523.3,0.02]
[1751716742027,19.96829487,2523.4,2523.3,0.02]
[1751716744734,20.51829487,2523.4,2523.3,0.02]
[1751716747705,20.51824959,2523.4,2523.3,0.02]
[1751716748032,20.51824959,2523.4,2523.3,1e-08]
[1751716748033,26.00743368,2523.4,2523.3,1e-08]
[1751716748232,3.96353547,2523.0,2522.9,0.0436007]
[1751716748447,19.82364873,2523.0,2522.9,0.0436007]
[1751716748737,22.44229616,2523.0,2522.9,0.0436007]
[1751716749035,23.19909896,2523.0,2522.9,0.0436007]
[1751716750736,23.68878137,2523.0,2522.9,0.0436007]
[1751716751512,23.48589896,2523.0,2522.9,0.0436007]
[1751716752118,25.41489896,2523.0,2522.9,0.0436007]
[1751716753206,25.61403573,2523.0,2522.9,0.0436007]
[1751716753510,25.24310656,2523.0,2522.9,0.0436007]
[1751716753715,25.6134824,2523.0,2522.9,0.0436007]
[1751716754143,25.41434563,2523.0,2522.9,0.0436007]
[1751716757312,25.61494715,2523.0,2522.9,0.0436007]
[1751716758447,3.96432111,2522.5,2522.4,0.0436007]
[1751716758657,19.82388104,2522.5,2522.4,0.0436007]
[1751716758859,20.37388104,2522.5,2522.4,0.0436007]
[1751716759214,28.34088104,2522.5,2522.4,0.0436007]
[1751716759543,34.11686513,2522.5,2522.4,0.0436007]
[1751716759838,30.69714706,2522.5,2522.4,0.0436007]
[1751716760047,34.1147603,2522.5,2522.4,0.0436007]
[1751716760844,28.20131019,2522.5,2522.4,0.0436007]
[1751716761047,24.78369695,2522.5,2522.4,0.0436007]
[1751716761455,14.88469695,2522.5,2522.4,0.0436007]
[1751716761612,16.81369695,2522.5,2522.4,0.0436007]
[1751716762141,14.88469695,2522.5,2522.4,0.0436007]
[1751716762337,16.81369695,2522.5,2522.4,0.0436007]
[1751716762516,20.47323089,2522.5,2522.4,0.0436007]
[1751716762945,19.92323089,2522.5,2522.4,0.0436007]
[1751716764449,20.76003089,2522.5,2522.4,0.0436007]
[1751716767151,18.83103089,2522.5,2522.4,0.0436007]
[1751716767316,28.73203089,2522.5,2522.4,0.0436007]
[1751716768255,18.83103089,2522.5,2522.4,0.0436007]
[1751716768435,28.73303089,2522.5,2522.4,0.0436007]
[1751716769152,28.93989951,2522.5,2522.4,0.0436007]
[1751716770772,28.65509951,2522.5,2522.4,0.0436007]
[1751716770979,18.75109951,2522.5,2522.4,0.0436007]
[1751716771146,28.65409951,2522.5,2522.4,0.0436007]
[1751716772384,18.75109951,2522.5,2522.4,0.0436007]
[1751716772676,28.65509951,2522.5,2522.4,0.0436007]
[1751716773038,28.65709951,2522.5,2522.4,0.0436007]
[1751716774270,28.65616141,2522.5,2522.4,0.0436007]
[1751716774682,18.75016141,2522.5,2522.4,0.0436007]
[1751716774850,28.65616141,2522.5,2522.4,0.0436007]
[1751716775182,18.75016141,2522.5,2522.4,0.0436007]
[1751716775377,28.65516141,2522.5,2522.4,0.0436007]
[1751716785486,18.75016141,2522.5,2522.4,0.0436007]
[1751716785691,28.65216141,2522.5,2522.4,0.0436007]
[1751716786317,28.65308226,2522.5,2522.4,0.0436007]
[1751716788204,28.65308226,2522.5,2522.3,0.01]
[1751716788205,13.96447827,2522.4,2522.3,0.01]
[1751716788375,14.33483686,2522.4,2522.3,0.01]
[1751716789103,13.96447827,2522.4,2522.3,0.01]
[1751716789304,16.26727552,2522.4,2522.3,0.7889]
[1751716795092,16.26729823,2522.4,2522.3,0.7889]
[1751716796327,20.61094897,2522.4,2522.3,0.01]
[1751716796618,20.06094897,2522.4,2522.3,0.01]
[1751716796779,16.26729823,2522.4,2522.3,0.01]
[1751716800007,14.33529823,2522.4,2522.3,0.01]
[1751716800309,16.26729823,2522.4,2522.3,0.01]
[1751716802411,14.33529823,2522.4,2522.3,0.01]
[1751716802611,16.26729823,2522.4,2522.3,0.01]
[1751716802817,12.30281996,2522.4,2522.3,0.7677]
[1751716803114,0.37081996,2522.4,2522.3,0.7677]
[1751716803413,0.37081996,2522.4,2522.3,5.20559982]
[1751716808713,1.931,2523.1,2522.8,0.7577]
[1751716809432,10.20675358,2523.2,2522.8,4.72154663]
[1751716809636,0.20675358,2523.2,2522.9,3.96367713]
[1751716809784,0.20675358,2523.2,2522.8,4.72146993]
[1751716809990,10.20675358,2523.2,2522.8,5.590016]
[1751716810703,11.931,2523.2,2522.8,5.590016]
[1751716812191,11.931,2523.2,2522.8,5.62965449]
[1751716812416,0.001,2523.4,2522.9,0.8235]
[1751716812621,1.931,2523.3,2523.0,3.96346323]
[1751716812922,0.36939387,2523.2,2523.1,1.61621558]
[1751716813322,10.36939387,2523.2,2523.1,0.8235]
[1751716813519,10.36939387,2523.2,2522.9,0.8235]
[1751716813722,0.36939387,2523.1,2522.9,4.78718269]
[1751716813926,0.36939387,2523.0,2522.9,4.78718269]
[1751716814419,11.932,2523.4,2523.0,3.96347607]
[1751716814594,11.932,2523.4,2522.9,0.8235]
[1751716814595,0.36921375,2523.3,2522.9,4.7871585]
[1751716814796,10.36921358,2523.2,2523.0,0.47871585]
[1751716814995,0.36921358,2523.1,2523.0,0.47871585]
[1751716815705,0.36921358,2523.1,2522.9,0.8235]
[1751716816015,0.36921358,2523.0,2522.9,0.8235]
[1751716816521,0.36921358,2523.1,2522.9,0.8235]
[1751716816730,0.36921358,2523.0,2522.9,0.8235]
[1751716817090,0.36921358,2523.1,2522.9,0.8235]
[1751716817294,0.36921358,2523.0,2522.9,1.30223324]
[1751716817530,0.36921358,2523.1,2522.9,1.30223324]
[1751716817831,0.36921358,2523.0,2522.9,1.30223324]
[1751716819023,4.33282877,2523.0,2522.6,0.7851]
[1751716819228,0.36921358,2522.9,2522.6,0.7851]
[1751716820725,0.36932714,2522.8,2522.6,0.7851]
[1751716820928,3.96361519,2523.0,2522.6,0.7851]
[1751716821227,0.36932704,2522.9,2522.6,0.7851]
[1751716821413,0.36932704,2522.9,2522.7,1.27233256]
[1751716822728,3.96344099,2523.1,2522.7,1.27233256]
[1751716822729,0.36932704,2522.8,2522.7,1.27233256]
[1751716823590,0.36943479,2523.0,2522.7,1.27233256]
[1751716823798,0.36943479,2522.9,2522.7,1.27233256]
[1751716823998,0.36943479,2522.8,2522.7,5.23633937]
[1751716824323,13.96333589,2523.2,2522.7,5.23633937]
[1751716824324,0.36943479,2523.1,2522.7,5.23633937]
[1751716824531,0.36943479,2523.1,2522.7,1.27233256]
[1751716824532,0.36943479,2523.0,2522.7,1.27233256]
[1751716824830,0.36943479,2522.9,2522.8,0.60215171]
[1751716824998,0.36943479,2522.9,2522.8,1.41885171]
[1751716825195,0.36943479,2523.1,2522.8,1.41885171]
[1751716825401,0.36943479,2523.0,2522.8,1.41885171]
[1751716825602,0.36943479,2522.9,2522.8,1.41885171]
[1751716825803,0.36943479,2523.1,2522.8,5.3827014]
[1751716826132,0.36943479,2523.0,2522.8,5.3827014]
[1751716826307,0.36943479,2522.9,2522.8,5.3827014]
[1751716826501,0.36943479,2522.9,2522.8,1.41885171]
[1751716828037,0.36943479,2522.9,2522.8,0.60215171]
[1751716828910,0.36943479,2522.9,2522.6,0.8167]
[1751716829109,0.36943479,2522.8,2522.6,0.8167]
[1751716829313,0.36943479,2522.7,2522.6,0.8167]
[1751716831336,10.0,2522.5,2522.3,0.01]
[1751716831514,0.36943479,2522.4,2522.3,0.01]
[1751716834437,4.33391306,2522.4,2522.3,0.01]
[1751716834823,0.36943479,2522.4,2522.3,0.01]
[1751716841450,4.33391306,2522.4,2522.3,0.01]
[1751716842944,24.20258679,2522.4,2522.3,0.01]
[1751716843451,24.75258679,2522.4,2522.3,0.01]
[1751716848369,32.73258679,2522.4,2522.3,0.01]
[1751716848545,4.80190705,2522.0,2521.9,0.0436007]
[1751716848741,14.66499195,2522.0,2521.9,0.0436007]
[1751716848949,17.32598874,2522.0,2521.9,0.0436007]
[1751716850066,27.32598874,2522.0,2521.9,1e-08]
[1751716850453,35.31498874,2522.0,2521.9,1e-08]
[1751716850752,27.75633863,2522.0,2521.9,1e-08]
[1751716850951,35.31498874,2522.0,2521.9,1e-08]
[1751716851148,25.39098874,2522.0,2521.9,1e-08]
[1751716851332,35.31598874,2522.0,2521.9,1e-08]
[1751716851728,25.5979009,2522.0,2521.9,1e-08]
[1751716851932,27.96425079,2522.0,2521.9,1e-08]
[1751716855589,17.75245079,2522.0,2521.9,1e-08]
[1751716855741,27.67745079,2522.0,2521.9,1e-08]
[1751716855944,27.96425079,2522.0,2521.9,1e-08]
[1751716856682,27.96352768,2522.0,2521.9,1e-08]
[1751716866383,18.03852768,2522.0,2521.9,1e-08]
[1751716866585,27.96452768,2522.0,2521.9,1e-08]
[1751716871368,27.96252768,2522.0,2521.9,1e-08]
[1751716873102,18.03852768,2522.0,2521.9,1e-08]
[1751716873392,27.96252768,2522.0,2521.9,1e-08]
[1751716876300,27.9642385,2522.0,2521.9,1e-08]
[1751716876501,27.9642385,2522.0,2521.8,0.01]
[1751716876502,14.51526428,2521.9,2521.8,0.01]
[1751716876693,16.23773753,2521.9,2521.8,0.01]
[1751716876892,16.23773776,2521.9,2521.8,0.01]
[1751716879412,16.23835866,2521.9,2521.8,0.01]
[1751716879910,16.23835866,2521.9,2521.8,0.7733]
[1751716879911,0.37105412,2521.9,2521.8,0.7733]
[1751716880489,0.37105412,2521.9,2521.8,4.73872152]
[1751716881391,0.37105412,2521.9,2521.8,4.77837573]
[1751716881585,0.37105412,2521.9,2521.8,4.73872152]
[1751716882412,5.902655,2522.3,2521.9,0.802]
[1751716882577,0.37027491,2522.2,2521.9,0.802]
[1751716882778,0.37027491,2522.1,2521.9,0.802]
[1751716883016,0.37027491,2522.0,2521.9,0.802]
[1751716885188,3.96487165,2522.2,2521.9,0.802]
[1751716885395,0.3700246,2522.1,2521.9,0.802]
[1751716885717,0.3700246,2522.0,2521.9,0.802]
[1751716888414,0.3700246,2522.0,2521.8,0.01]
[1751716888415,13.96526428,2521.9,2521.8,0.01]
[1751716888600,14.88528888,2521.9,2521.8,0.01]
[1751716891138,14.88503545,2521.9,2521.8,0.01]
[1751716893220,45.17183545,2521.9,2521.8,0.01]
[1751716894118,14.51589331,2521.5,2521.4,0.0436007]
[1751716894313,26.23047992,2521.5,2521.4,0.0436007]
[1751716895728,26.23029673,2521.5,2521.4,0.0436007]
[1751716896543,34.51709673,2521.5,2521.4,0.0436007]
[1751716896827,34.51709673,2521.5,2520.9,0.0436007]
[1751716896828,13.96667988,2521.0,2520.9,0.0436007]
[1751716897003,12.31258798,2521.0,2520.9,0.8514007]
[1751716898534,16.27926786,2521.0,2520.9,0.8514007]
[1751716900438,16.27926786,2521.0,2520.9,0.0436007]
[1751716901746,16.48624282,2521.0,2520.9,0.0436007]
[1751716902165,17.03624282,2521.0,2520.9,0.0436007]
[1751716902349,20.17918651,2521.0,2520.9,0.0436007]
[1751716902644,20.17918651,2521.0,2520.9,1e-08]
[1751716902862,20.17918651,2521.0,2520.7,0.01]
[1751716902863,0.55,2520.8,2520.7,1e-08]
[1751716903146,60.74503269,2520.8,2520.7,1e-08]
[1751716903346,25.13338258,2520.8,2520.7,1e-08]
[1751716903528,25.63534779,2520.8,2520.7,1e-08]
[1751716903944,15.67534779,2520.8,2520.7,1e-08]
[1751716904121,25.63634779,2520.8,2520.7,1e-08]
[1751716904915,55.63634779,2520.8,2520.7,1e-08]
[1751716906650,45.67534779,2520.8,2520.7,1e-08]
[1751716906820,55.64134779,2520.8,2520.7,1e-08]
[1751716911750,44.80442418,2520.4,2520.3,1e-08]
[1751716912054,61.58464871,2520.4,2520.3,1e-08]
[1751716912639,53.56264871,2520.4,2520.3,1e-08]
[1751716912843,33.53364871,2520.4,2520.3,1e-08]
[1751716913152,63.53364871,2520.4,2520.3,1e-08]
[1751716913739,63.53364871,2520.4,2519.8,0.0436007]
[1751716913740,14.51841144,2519.9,2519.8,0.0436007]
[1751716914063,24.86299942,2519.9,2519.8,0.0436007]
[1751716914355,16.28199942,2519.9,2519.8,0.0436007]
[1751716914861,10.36958798,2519.9,2519.8,0.0436007]
[1751716915230,12.31358798,2519.9,2519.8,0.0436007]
[1751716915455,10.36958798,2519.9,2519.8,0.0436007]
[1751716915654,12.31358798,2519.9,2519.8,0.0436007]
[1751716916056,10.36958798,2519.9,2519.8,0.0436007]
[1751716916263,12.31358798,2519.9,2519.8,0.0436007]
[1751716916948,16.28199942,2519.9,2519.8,0.0436007]
[1751716917135,12.31358798,2519.9,2519.8,0.0436007]
[1751716918135,16.28199942,2519.9,2519.8,0.0436007]
[1751716919759,19.26062599,2519.9,2519.8,0.0436007]
[1751716920766,10.36958798,2519.9,2519.8,0.0436007]
[1751716920933,0.36958798,2519.9,2519.8,4.76396963]
[1751716921369,0.36958798,2519.9,2519.8,4.80365531]
[1751716921549,0.36958798,2519.9,2519.8,4.76396963]
[1751716921749,0.36958798,2519.9,2519.8,5.63723694]
[1751716921957,0.36958798,2519.9,2519.8,5.67692262]
[1751716922141,1.944,2520.3,2519.9,0.7518]
[1751716922343,1.944,2520.3,2520.2,0.7518]
[1751716922668,2.31249882,2520.3,2520.2,0.7518]
[1751716925170,2.31249882,2520.3,2519.6,3.96885257]
[1751716925171,14.51919901,2519.4,2518.3,0.8054007]
[1751716925379,14.51919901,2519.4,2518.3,4.77624693]
[1751716925380,42.84013374,2519.4,2518.3,4.77624693]
[1751716925678,43.50230806,2519.4,2518.4,0.03970775]
[1751716925848,43.67230806,2519.4,2518.3,4.77626304]
[1751716926044,43.67230806,2519.4,2518.3,0.8054007]
[1751716926258,0.55,2519.2,2518.5,0.0552674]
[1751716926450,3.97032477,2518.7,2518.5,0.0989226]
[1751716926650,0.36849882,2518.6,2518.5,0.0989226]
[1751716928171,14.33895859,2518.6,2518.5,0.0989226]
[1751716928371,10.36849882,2518.6,2518.5,0.0989226]
[1751716928552,10.36817929,2518.6,2518.5,0.0989226]
[1751716928742,2.40617929,2518.6,2518.5,0.8507226]
[1751716929370,0.36817929,2518.6,2518.5,0.8507226]
[1751716930288,17.9268294,2518.6,2518.5,0.0989226]
[1751716930449,21.89728917,2518.6,2518.5,0.0989226]
[1751716931487,22.44728917,2518.6,2518.5,0.0989226]
[1751716932281,24.48528917,2518.6,2518.5,0.0989226]
[1751716932465,26.44140747,2518.6,2518.5,0.0989226]
[1751716933791,16.44140747,2518.6,2518.5,0.0989226]
[1751716934099,26.44140747,2518.6,2518.5,0.0989226]
[1751716934946,26.44140747,2518.6,2518.3,0.01]
[1751716934947,14.80757509,2518.4,2518.3,0.01]
[1751716935173,25.43275438,2518.4,2518.3,0.01]
[1751716935479,15.17575438,2518.4,2518.3,0.01]